[Event "73rd PGNiG TERMIKA POL-chW 2021"]
[Site "Bydgoszcz"]
[Date "2021.04.30"]
[Round "2.2"]
[White "Rudzinska, Michalina"]
[Black "Kulon, Klaudia"]
[Result "1/2-1/2"]
[ECO "B34"]
[WhiteElo "2251"]
[BlackElo "2347"]
[Annotator "NA"]
[PlyCount "135"]
[EventDate "2021.04.29"]
[EventType "tourn"]
[EventCountry "POL"]
[SourceTitle "playchess.com"]
[Source "ChessBase"]
[SourceQuality "1"]
[TimeControl "40/5400+30:1800+30"]

1. e4 {[%emt 0:00:00]} c5 {[%emt 0:00:00]} 2. Nf3 {[%emt 0:00:00]} Nc6 {[%emt 0:00:00]} 3. d4 {[%emt 0:00:00]} cxd4 {[%emt 0:00:00]} 4. Nxd4 {[%emt 0:00:00]} Nf6 {[%emt 0:00:00]} 5. Nc3 {[%emt 0:00:00]} e5 {[%emt 0:00:00]} 6. Ndb5 {[%emt 0:00:01]} d6 {[%emt 0:00:00]} 7. a4 {[%emt 0:00:07]} a6 {[%emt 0:00:15]} 8. Na3 {[%emt 0:00:06]} Bg4 {[%emt 0:00:19]} 9. f3 {[%emt 0:00:06]} Be6 {[%emt 0:00:09]} 10. Bc4 {[%emt 0:01:34]} Nb4 {[%emt 0:00:40]} 11. Bg5 {[%emt 0:01:04]} Qc7 {[%emt 0:00:23]} 12. Bb3 {[%emt 0:05:26]} h6 {[%emt 0:15:20]} 13. Bxf6 {[%emt 0:02:46]} gxf6 {[%emt 0:00:02]} 14. O-O {[%emt 0:03:21]} h5 {[%emt 0:10:11]} 15. Kh1 {[%emt 0:03:24]} Bh6 {[%emt 0:02:16]} 16. Nd5 {[%emt 0:06:33]} Bxd5 {[%emt 0:04:56]} 17. Bxd5 {[%emt 0:02:01]} Nxd5 {[%emt 0:09:03]} 18. Qxd5 {[%emt 0:00:07]} Qc6 {[%emt 0:03:00]} 19. Rfd1 {[%emt 0:03:50]} Ke7 {[%emt 0:00:27]} 20. Qb3 {[%emt 0:07:28]} Rac8 {[%emt 0:01:15]} 21. Rd3 {[%emt 0:00:55]} Bg5 {[%emt 0:12:20]} 22. Rad1 {[%emt 0:05:08]} Rhd8 {[%emt 0:00:12]} 23. Rc3 {[%emt 0:02:46]} Qd7 {[%emt 0:00:56]} 24. Rxc8 {[%emt 0:14:20]} Qxc8 {[%emt 0:02:34]} 25. Nc4 {[%emt 0:01:44]} h4 {[%emt 0:02:30]} 26. Nb6 {[%emt 0:07:57]} Qc6 {[%emt 0:00:57]} 27. Rd3 {[%emt 0:01:13]} d5 {[%emt 0:10:06]} 28. Nxd5+ {[%emt 0:13:26]} Kf8 {[%emt 0:00:24]} 29. Rc3 {[%emt 0:05:00]} Qd7 {[%emt 0:01:23]} 30. Qb6 {[%emt 0:04:28]} f5 {[%emt 0:00:51]} 31. Qc5+ {[%emt 0:07:40]} Kg7 {[%emt 0:01:15]} 32. Qc7 {[%emt 0:00:18]} Qxa4 {[%emt 0:06:08]} 33. Qxe5+ {[%emt 0:00:24]} f6 {[%emt 0:00:55]} 34. Qe7+ {[%emt 0:02:28]} Kh6 {[%emt 0:00:02]} 35. Qa3 {[%emt 0:00:29]} Qxa3 {[%emt 0:01:26]} 36. Rxa3 {[%emt 0:00:25]} fxe4 {[%emt 0:00:16]} 37. fxe4 {[%emt 0:00:04]} f5 {[%emt 0:00:21]} 38. Kg1 {[%emt 0:01:20]} fxe4 {[%emt 0:00:05]} 39. c4 {[%emt 0:00:51]} Rc8 {[%emt 0:03:17]} 40. Rc3 {[%emt 0:00:00]} Bd2 {[%emt 0:00:00]} 41. Rb3 {[%emt 0:09:47]} Rxc4 {[%emt 0:04:13]} 42. Rxb7 {[%emt 0:01:59]} Rc5 {[%emt 0:05:14]} 43. Rd7 {[%emt 0:05:01]} Rc1+ {[%emt 0:12:30]} 44. Kf2 {[%emt 0:00:05]} Rc2 {[%emt 0:00:03]} 45. Ne3 {[%emt 0:03:38]} Rxb2 {[%emt 0:02:17]} 46. Nc4 {[%emt 0:00:16]} e3+ {[%emt 0:00:05]} 47. Nxe3 {[%emt 0:00:23]} Bc1+ {[%emt 0:03:52]} 48. Kf3 {[%emt 0:00:27]} Rb3 {[%emt 0:00:24]} 49. Re7 {[%emt 0:03:52]} a5 {[%emt 0:00:04]} 50. Kf2 {[%emt 0:01:04]} a4 {[%emt 0:01:20]} 51. Nc4 {[%emt 0:02:35]} Rc3 {[%emt 0:01:01]} 52. Re4 {[%emt 0:02:54]} Bg5 {[%emt 0:01:55]} 53. Nd6 {[%emt 0:02:48]} Rc2+ {[%emt 0:01:18]} 54. Kf3 {[%emt 0:00:10]} a3 {[%emt 0:01:30]} 55. Nf7+ {[%emt 0:00:12]} Kg6 {[%emt 0:00:08]} 56. Nxg5 {[%emt 0:00:14]} a2 {[%emt 0:00:52]} 57. Ra4 {[%emt 0:00:11]} Kxg5 {[%emt 0:00:04]} 58. Ra5+ {[%emt 0:00:31]} Kf6 {[%emt 0:00:10]} 59. Kg4 {[%emt 0:03:20]} Rxg2+ {[%emt 0:02:00]} 60. Kxh4 {[%emt 0:00:05]} Rxh2+ {[%emt 0:00:22]} 61. Kg3 {[%emt 0:00:12]} Rc2 {[%emt 0:00:03]} 62. Kf3 {[%emt 0:00:29]} Ke6 {[%emt 0:00:02]} 63. Ke3 {[%emt 0:00:05]} Rh2 {[%emt 0:00:13]} 64. Kd3 {[%emt 0:00:13]} Rh3+ {[%emt 0:00:21]} 65. Kc2 {[%emt 0:00:12]} Rh2+ {[%emt 0:00:12]} 66. Kb3 {[%emt 0:00:06]} Kd6 {[%emt 0:00:02]} 67. Rxa2 {[%emt 0:00:05]} Rxa2 {[%emt 0:00:03]} 68. Kxa2 {[%emt 0:00:06]} 1/2-1/2

[Event "73rd PGNiG TERMIKA POL-chW 2021"]
[Site "Bydgoszcz"]
[Date "2021.05.07"]
[Round "9.3"]
[White "Zawadzka, Jolanta"]
[Black "Rajlich, Iweta"]
[Result "0-1"]
[ECO "C11"]
[WhiteElo "2399"]
[BlackElo "2394"]
[Annotator "NA"]
[PlyCount "105"]
[EventDate "2021.04.29"]
[EventType "tourn"]
[EventCountry "POL"]
[SourceTitle "playchess.com"]
[Source "ChessBase"]
[SourceQuality "1"]
[TimeControl "40/5400+30:1800+30"]

1. e4 {[%emt 0:00:00]} e6 {[%emt 0:00:00]} 2. d4 {[%emt 0:00:00]} d5 {[%emt 0:00:00]} 3. Nc3 {[%emt 0:00:00]} Nf6 {[%emt 0:00:00]} 4. Bg5 {[%emt 0:00:00]} dxe4 {[%emt 0:00:00]} 5. Nxe4 {[%emt 0:00:00]} Nbd7 {[%emt 0:00:01]} 6. Nf3 {[%emt 0:01:31]} h6 {[%emt 0:00:36]} 7. Nxf6+ {[%emt 0:05:21]} Nxf6 {[%emt 0:00:07]} 8. Bxf6 {[%emt 0:00:31]} Qxf6 {[%emt 0:00:55]} 9. Qd3 {[%emt 0:00:08]} Be7 {[%emt 0:04:09]} 10. O-O-O {[%emt 0:03:04]} O-O {[%emt 0:02:57]} 11. Qe4 {[%emt 0:09:40]} Rd8 {[%emt 0:11:14]} 12. g4 {[%emt 0:09:58]} Bd6 {[%emt 0:09:37]} 13. Ne5 {[%emt 0:13:30]} Bxe5 {[%emt 0:01:35]} 14. Qxe5 {[%emt 0:02:27]} Qxe5 {[%emt 0:09:54]} 15. dxe5 {[%emt 0:00:05]} Rxd1+ {[%emt 0:00:10]} 16. Kxd1 {[%emt 0:00:02]} f6 {[%emt 0:07:32]} 17. Bc4 {[%emt 0:06:12]} Kf7 {[%emt 0:01:20]} 18. Re1 {[%emt 0:03:26]} Bd7 {[%emt 0:04:30]} 19. Kc1 {[%emt 0:06:00]} b5 {[%emt 0:03:41]} 20. Bd3 {[%emt 0:00:30]} Ke7 {[%emt 0:13:44]} 21. Be4 {[%emt 0:04:52]} Rg8 {[%emt 0:10:06]} 22. Re3 {[%emt 0:10:53]} a5 {[%emt 0:02:20]} 23. Rc3 {[%emt 0:01:08]} Rc8 {[%emt 0:07:44]} 24. a4 {[%emt 0:06:42]} fxe5 {[%emt 0:01:29]} 25. axb5 {[%emt 0:00:20]} Bxb5 {[%emt 0:00:30]} 26. Rc5 {[%emt 0:00:52]} c6 {[%emt 0:03:59]} 27. Rxe5 {[%emt 0:00:18]} Rf8 {[%emt 0:00:35]} 28. f3 {[%emt 0:00:47]} Kd6 {[%emt 0:00:30]} 29. Rh5 {[%emt 0:00:10]} c5 {[%emt 0:01:04]} 30. Kd2 {[%emt 0:02:43]} Be8 {[%emt 0:00:24]} 31. Rh3 {[%emt 0:00:48]} a4 {[%emt 0:00:48]} 32. Rg3 {[%emt 0:01:39]} g5 {[%emt 0:00:48]} 33. Rg2 {[%emt 0:02:46]} Bc6 {[%emt 0:00:37]} 34. Ke3 {[%emt 0:00:08]} Bd5 {[%emt 0:00:20]} 35. Rd2 {[%emt 0:00:25]} Ke5 {[%emt 0:00:24]} 36. Bxd5 {[%emt 0:03:35]} exd5 {[%emt 0:00:01]} 37. c3 {[%emt 0:00:07]} Rb8 {[%emt 0:00:10]} 38. h3 {[%emt 0:03:41]} Rb3 {[%emt 0:01:01]} 39. Kd3 {[%emt 0:00:56]} a3 {[%emt 0:00:27]} 40. bxa3 {[%emt 0:00:00]} d4 {[%emt 0:00:00]} 41. Re2+ {[%emt 0:09:43]} Kd5 {[%emt 0:02:28]} 42. Ra2 {[%emt 0:04:49]} Rxc3+ {[%emt 0:01:17]} 43. Ke2 {[%emt 0:00:04]} Re3+ {[%emt 0:02:13]} 44. Kf2 {[%emt 0:00:19]} Re8 {[%emt 0:03:19]} 45. a4 {[%emt 0:01:59]} d3 {[%emt 0:02:53]} 46. a5 {[%emt 0:00:06]} c4 {[%emt 0:00:27]} 47. a6 {[%emt 0:00:04]} c3 {[%emt 0:00:42]} 48. a7 {[%emt 0:00:28]} c2 {[%emt 0:01:54]} 49. a8=Q+ Rxa8 {[%emt 0:00:06]} 50. Rxa8 {[%emt 0:00:09]} c1=Q {[%emt 0:01:33]} 51. Rd8+ {[%emt 0:00:05]} Ke5 {[%emt 0:00:23]} 52. Rxd3 {[%emt 0:00:07]} Qc5+ {[%emt 0:00:31]} 53. Ke2 {[%emt 0:00:48]} 0-1